{"text_format":"1","workbook":"xlsx","n_sheets":3,"sheets":["Notice utilisation du tamis","Saisie des données","Recommandations"],"not_rendered":{"charts":1,"images":8,"macros":1,"external_links":0,"defined_names":3,"comments":0,"pivot_tables":0},"unopened":[],"bounds":{"document_bytes":16777216,"sheet_cells":100000,"rows_first":2000,"rows_last":500,"rows_between":2000,"halvings":0,"cell_chars":16384,"cell_head_chars":4096},"cells_cut":0,"cells_raw":0,"read":"whole","date_system":"1900"}

{"sheet":"Notice utilisation du tamis","index":0,"n_rows":12,"n_cols":2,"rows_kept":12,"cut":false,"hidden":false,"merged":[[11,1,12,16],[1,1,1,15],[2,1,2,15],[3,1,3,15],[0,1,0,16],[5,1,5,7],[5,9,5,12]]}
[null,"Notice utilisation du tamis"]
[null,"1- Retirer le couvercle du tamis. Insérer le couvercle debout dans la fente prévue à cet effet au milieu du compartiment >3mm (voir photo N°1).\n2- Remplir le compartiment de gauche à ras bord. Porter une attention particulière à l'échantillonnage. "]
[null,"3- Enlever le couvercle et refermer le tamis en repositionnant le couvercle dans les fentes prévues à cet effet (voir photo N°2).\n4- Positionner le tamis HUBBARD debout (compartiment > 3mm vers le haut) et agiter pendant 60 secondes en alternant de gauche à droite et de haut en bas."]
[null,"6- Lecture des résultats: relever la quantité de chaque compartiment en utilisant l'échelle graduée situé à gauche de chaque compartiment (Voir photo N°3).\n7- Reporter les résultats dans l'onglet \"Saisie des données\" de ce fichier Excel.\n8- Enlever le couvercle et vider l'aliment du tamis. Nettoyer les tamis à l'aide d'un pinceau."]
[]
[]
[]
[]
[]
[]
[]
[null,"www.hubbardbreeders.com"]

{"sheet":"Saisie des données","index":1,"n_rows":46,"n_cols":16,"rows_kept":46,"cut":false,"hidden":false,"merged":[[48,4,1048575,15],[4,8,10,15],[42,4,42,15],[43,4,44,15],[45,4,45,15],[12,10,20,10],[12,11,12,15],[12,5,12,9],[4,5,4,7],[6,5,6,7],[7,5,7,7],[9,5,9,7],[10,5,10,7],[8,5,8,7],[5,5,5,7],[0,4,2,15],[3,5,3,7],[3,8,3,15],[21,4,41,15],[12,4,13,4],[11,4,11,15]]}
[null,null,null,null,"Granulométrie de l'aliment pour les Parentales"]
[]
[]
[null,null,null,null,"Entreprise","Hubbard",null,null,"Comment utiliser ce fichier?"]
[null,null,null,null,"Date","2025-01-01",null,null,"1-Compléter uniquement les cellules en vert. \nImportant de bien renseigner la formule d'aliment et la présentation pour que les recommandations d'aliment se mettent à jour.\n\n2-Interprétation / Légende:\nRésultats conformes aux recommendations HUBBARD\nRésultats en dehors des recommendations HUBBARD"]
[null,null,null,null,"Génétique","PS EFFICIENCY PLUS"]
[null,null,null,null,"Nom de la ferme","Cocorico"]
[null,null,null,null,"N° bâtiment",1]
[null,null,null,null,"Fabricant d'aliment","Feed  Plus"]
[null,null,null,null,"Formule d'aliment","Ponte I"]
[null,null,null,null,"Présentation","Farine"]
[]
[null,null,null,null,null,"Remplir les valeurs lues sur le tamis",null,null,null,null,null,"% de chaque catégorie de particule"]
[null,null,null,null,null,">3mm","2-3mm","1-2mm","<1mm","Total",null,">3mm","2-3mm","1-2mm","<1mm","Total"]
[null,null,null,null,"Sous-échantillon 1",10,45,35,10,{"$f":"IF(OR(F15=\"\",G15=\"\",H15=\"\",I15=\"\"),\"\",SUM(F15:I15))","v":100},null,{"$f":"IF(J15=\"\",\"\",F15/$J15)","v":0.1},{"$f":"IF(J15=\"\",\"\",G15/$J15)","v":0.45},{"$f":"IF(J15=\"\",\"\",H15/$J15)","v":0.35},{"$f":"IF(J15=\"\",\"\",I15/$J15)","v":0.1},{"$f":"IF(J15=\"\",\"\",J15/$J15)","v":1}]
[null,null,null,null,"Sous-échantillon 2",12.5,42.5,32.5,15,{"$f":"IF(OR(F16=\"\",G16=\"\",H16=\"\",I16=\"\"),\"\",SUM(F16:I16))","v":102.5},null,{"$f":"IF(J16=\"\",\"\",F16/$J16)","v":0.12195121951219512},{"$f":"IF(J16=\"\",\"\",G16/$J16)","v":0.41463414634146339},{"$f":"IF(J16=\"\",\"\",H16/$J16)","v":0.31707317073170732},{"$f":"IF(J16=\"\",\"\",I16/$J16)","v":0.14634146341463414},{"$f":"IF(J16=\"\",\"\",J16/$J16)","v":1}]
[null,null,null,null,"Sous-échantillon 3",15,40,30,15,100,null,{"$f":"IF(J17=\"\",\"\",F17/$J17)","v":0.15},0.4,0.3,0.15,1]
[null,null,null,null,"Sous-échantillon 4",17.5,37.5,27.5,12.5,95,null,0.18421052631578946,{"$f":"IF(J18=\"\",\"\",G18/$J18)","v":0.39473684210526316},0.28947368421052633,0.13157894736842105,1]
[null,null,null,null,"Sous-échantillon 5",20,35,25,15,{"$f":"IF(OR(F19=\"\",G19=\"\",H19=\"\",I19=\"\"),\"\",SUM(F19:I19))","v":95},null,{"$f":"IF(J19=\"\",\"\",F19/$J19)","v":0.21052631578947367},{"$f":"IF(J19=\"\",\"\",G19/$J19)","v":0.36842105263157893},0.26315789473684209,0.15789473684210525,1]
[null,null,null,null,"Moyenne",{"$f":"IF($F$15>0.001,AVERAGE(F15:F19),\"\")","v":15},{"$f":"IF($F$15>0.001,AVERAGE(G15:G19),\"\")","v":40},{"$f":"IF($F$15>0.001,AVERAGE(H15:H19),\"\")","v":30},{"$f":"IF($F$15>0.001,AVERAGE(I15:I19),\"\")","v":13.5},{"$f":"IF($F$15>0.001,AVERAGE(J15:J19),\"\")","v":98.5},null,{"$f":"IF($F$15>0.001,AVERAGE(L15:L19),\"\")","v":0.15333761232349166},{"$f":"IF($F$15>0.001,AVERAGE(M15:M19),\"\")","v":0.40555840821566108},{"$f":"IF($F$15>0.001,AVERAGE(N15:N19),\"\")","v":0.30394094993581511},{"$f":"IF($F$15>0.001,AVERAGE(O15:O19),\"\")","v":0.13716302952503207},{"$f":"IF($F$15>0.001,AVERAGE(P15:P19),\"\")","v":1}]
[null,null,null,null,"Recommendation Hubbard",{"$f":"IF(L21=\"\",\"\",L21*100)","v":15},{"$f":"IF(M21=\"\",\"\",M21*100)","v":40},{"$f":"IF(N21=\"\",\"\",N21*100)","v":30},{"$f":"IF(O21=\"\",\"\",O21*100)","v":15},{"$f":"IF(P21=\"\",\"\",P21*100)","v":100},null,{"$f":"IF(VLOOKUP($F$11&$F$10&$L$14,Recommandations!A2:E97,5)=\"N/A\",\"\",VLOOKUP($F$11&$F$10&$L$14,Recommandations!A2:E97,5))","v":0.15},{"$f":"IF(VLOOKUP($F$11&$F$10&$M$14,Recommandations!$A$2:$E$97,5)=\"N/A\",\"\",VLOOKUP($F$11&$F$10&$M$14,Recommandations!$A$2:$E$97,5))","v":0.4},{"$f":"IF(VLOOKUP($F$11&$F$10&$N$14,Recommandations!$A$2:$E$97,5)=\"N/A\",\"\",VLOOKUP($F$11&$F$10&$N$14,Recommandations!$A$2:$E$97,5))","v":0.3},{"$f":"IF(VLOOKUP($F$11&$F$10&$O$14,Recommandations!$A$2:$E$97,5)=\"N/A\",\"\",VLOOKUP($F$11&$F$10&$O$14,Recommandations!$A$2:$E$97,5))","v":0.15},{"$f":"IF(SUM(L21:O21)=0,\"\",SUM(L21:O21))","v":1}]
[]
[]
[]
[]
[]
[]
[]
[]
[]
[]
[]
[]
[]
[]
[]
[]
[]
[]
[]
[]
[]
[null,null,null,null," Veuillez consulter votre référent technique Hubbard pour obtenir de plus amples détails."]
[null,null,null,null,"www.hubbardbreeders.com"]
[]
[null,null,null,null,"Les données de performances fournies dans ce document ont été établies à partir de notre expérience et des résultats obtenus de nos propres animaux d’expérimentation et des animaux de notre clientèle. Les données de ce document ne sauraient en aucun cas garantir l’obtention des mêmes performances dans des conditions de nutrition, de densité ou d’environnement physique ou biologique différentes. En particulier (mais sans limitation de ce qui précède), nous ne donnons aucune garantie d’adéquation au but, à la performance, à l’usage, à la nature ou la qualité des animaux, ni aucune garantie de conformité avec les réglementations locales relatives à la santé, au bien-être, ou autres aspects des productions animales. Hubbard ne fait aucune déclaration quant au caractère précis ou complet des informations contenues dans ce document. v 2025-01"]

{"sheet":"Recommandations","index":2,"n_rows":97,"n_cols":10,"rows_kept":97,"cut":false,"hidden":true,"merged":[]}
["ID","Présentation","Taille des particules","Formule","Recommendation","Qualité de la présentation"]
["FarineCroissance<1mm","Farine","<1mm","Croissance",0.2,"Good",null,"Miette","Pré-démarrage","PS Female EFFICIENCY PLUS"]
["FarineCroissance>3mm","Farine",">3mm","Croissance",0.1,"Good",null,"Farine","Démarrage","PS Premium Female (JA57; JA57Ki; JA87; REDBRO; Redbro Mini; P6N)  "]
["FarineCroissance1-2mm","Farine","1-2mm","Croissance",0.35,"Good",null,"Granulé","Croissance","PS Males (M77/M99)"]
["FarineCroissance2-3mm","Farine","2-3mm","Croissance",0.35,"Good",null,null,"Transition","PS Males (Intermediate growth males, slow growth males)"]
["FarineDémarrage<1mm","Farine","<1mm","Démarrage",0.2,"Good",null,null,"Montée en ponte"]
["FarineDémarrage>3mm","Farine",">3mm","Démarrage",0.05,"Good",null,null,"Ponte I"]
["FarineDémarrage1-2mm","Farine","1-2mm","Démarrage",0.5,"Good",null,null,"Ponte II"]
["FarineDémarrage2-3mm","Farine","2-3mm","Démarrage",0.25,"Good",null,null,"Ponte III"]
["FarineMontée en ponte<1mm","Farine","<1mm","Montée en ponte",0.15,"Good"]
["FarineMontée en ponte>3mm","Farine",">3mm","Montée en ponte",0.15,"Good"]
["FarineMontée en ponte1-2mm","Farine","1-2mm","Montée en ponte",0.3,"Good"]
["FarineMontée en ponte2-3mm","Farine","2-3mm","Montée en ponte",0.4,"Good"]
["FarinePonte I<1mm","Farine","<1mm","Ponte I",0.15,"Good"]
["FarinePonte I>3mm","Farine",">3mm","Ponte I",0.15,"Good"]
["FarinePonte I1-2mm","Farine","1-2mm","Ponte I",0.3,"Good"]
["FarinePonte I2-3mm","Farine","2-3mm","Ponte I",0.4,"Good"]
["FarinePonte II<1mm","Farine","<1mm","Ponte II",0.15,"Good"]
["FarinePonte II>3mm","Farine",">3mm","Ponte II",0.15,"Good"]
["FarinePonte II1-2mm","Farine","1-2mm","Ponte II",0.3,"Good"]
["FarinePonte II2-3mm","Farine","2-3mm","Ponte II",0.4,"Good"]
["FarinePonte III<1mm","Farine","<1mm","Ponte III",0.15,"Good"]
["FarinePonte III>3mm","Farine",">3mm","Ponte III",0.15,"Good"]
["FarinePonte III1-2mm","Farine","1-2mm","Ponte III",0.3,"Good"]
["FarinePonte III2-3mm","Farine","2-3mm","Ponte III",0.4,"Good"]
["FarinePré-démarrage<1mm","Farine","<1mm","Pré-démarrage",0.2,"Good"]
["FarinePré-démarrage>3mm","Farine",">3mm","Pré-démarrage",0.05,"Good"]
["FarinePré-démarrage1-2mm","Farine","1-2mm","Pré-démarrage",0.5,"Good"]
["FarinePré-démarrage2-3mm","Farine","2-3mm","Pré-démarrage",0.25,"Good"]
["FarineTransition<1mm","Farine","<1mm","Transition",0.2,"Good"]
["FarineTransition>3mm","Farine",">3mm","Transition",0.1,"Good"]
["FarineTransition1-2mm","Farine","1-2mm","Transition",0.35,"Good"]
["FarineTransition2-3mm","Farine","2-3mm","Transition",0.35,"Good"]
["GranuléCroissance<1mm","Granulé","<1mm","Croissance",0.1,"Good"]
["GranuléCroissance>3mm","Granulé",">3mm","Croissance",0.7,"Good"]
["GranuléCroissance1-2mm","Granulé","1-2mm","Croissance",0.1,"Good"]
["GranuléCroissance2-3mm","Granulé","2-3mm","Croissance",0.1,"Good"]
["GranuléDémarrage<1mm","Granulé","<1mm","Démarrage","N/A","Good"]
["GranuléDémarrage>3mm","Granulé",">3mm","Démarrage","N/A","Good"]
["GranuléDémarrage1-2mm","Granulé","1-2mm","Démarrage","N/A","Good"]
["GranuléDémarrage2-3mm","Granulé","2-3mm","Démarrage","N/A","Good"]
["GranuléMontée en ponte<1mm","Granulé","<1mm","Montée en ponte",0.1,"Good"]
["GranuléMontée en ponte>3mm","Granulé",">3mm","Montée en ponte",0.7,"Good"]
["GranuléMontée en ponte1-2mm","Granulé","1-2mm","Montée en ponte",0.1,"Good"]
["GranuléMontée en ponte2-3mm","Granulé","2-3mm","Montée en ponte",0.1,"Good"]
["GranuléPonte I<1mm","Granulé","<1mm","Ponte I",0.1,"Good"]
["GranuléPonte I>3mm","Granulé",">3mm","Ponte I",0.7,"Good"]
["GranuléPonte I1-2mm","Granulé","1-2mm","Ponte I",0.1,"Good"]
["GranuléPonte I2-3mm","Granulé","2-3mm","Ponte I",0.1,"Good"]
["GranuléPonte II<1mm","Granulé","<1mm","Ponte II",0.1,"Good"]
["GranuléPonte II>3mm","Granulé",">3mm","Ponte II",0.7,"Good"]
["GranuléPonte II1-2mm","Granulé","1-2mm","Ponte II",0.1,"Good"]
["GranuléPonte II2-3mm","Granulé","2-3mm","Ponte II",0.1,"Good"]
["GranuléPonte III<1mm","Granulé","<1mm","Ponte III",0.1,"Good"]
["GranuléPonte III>3mm","Granulé",">3mm","Ponte III",0.7,"Good"]
["GranuléPonte III1-2mm","Granulé","1-2mm","Ponte III",0.1,"Good"]
["GranuléPonte III2-3mm","Granulé","2-3mm","Ponte III",0.1,"Good"]
["GranuléPré-démarrage<1mm","Granulé","<1mm","Pré-démarrage","N/A","Good"]
["GranuléPré-démarrage>3mm","Granulé",">3mm","Pré-démarrage","N/A","Good"]
["GranuléPré-démarrage1-2mm","Granulé","1-2mm","Pré-démarrage","N/A","Good"]
["GranuléPré-démarrage2-3mm","Granulé","2-3mm","Pré-démarrage","N/A","Good"]
["GranuléTransition<1mm","Granulé","<1mm","Transition",0.1,"Good"]
["GranuléTransition>3mm","Granulé",">3mm","Transition",0.7,"Good"]
["GranuléTransition1-2mm","Granulé","1-2mm","Transition",0.1,"Good"]
["GranuléTransition2-3mm","Granulé","2-3mm","Transition",0.1,"Good"]
["MietteCroissance<1mm","Miette","<1mm","Croissance",0.1,"Good"]
["MietteCroissance>3mm","Miette",">3mm","Croissance",0.5,"Good"]
["MietteCroissance1-2mm","Miette","1-2mm","Croissance",0.1,"Good"]
["MietteCroissance2-3mm","Miette","2-3mm","Croissance",0.3,"Good"]
["MietteDémarrage<1mm","Miette","<1mm","Démarrage",0.05,"Good"]
["MietteDémarrage>3mm","Miette",">3mm","Démarrage",0,"Good"]
["MietteDémarrage1-2mm","Miette","1-2mm","Démarrage",0.55000000000000004,"Good"]
["MietteDémarrage2-3mm","Miette","2-3mm","Démarrage",0.4,"Good"]
["MietteMontée en ponte<1mm","Miette","<1mm","Montée en ponte",0.1,"Good"]
["MietteMontée en ponte>3mm","Miette",">3mm","Montée en ponte",0.5,"Good"]
["MietteMontée en ponte1-2mm","Miette","1-2mm","Montée en ponte",0.1,"Good"]
["MietteMontée en ponte2-3mm","Miette","2-3mm","Montée en ponte",0.3,"Good"]
["MiettePonte I<1mm","Miette","<1mm","Ponte I",0.1,"Good"]
["MiettePonte I>3mm","Miette",">3mm","Ponte I",0.5,"Good"]
["MiettePonte I1-2mm","Miette","1-2mm","Ponte I",0.1,"Good"]
["MiettePonte I2-3mm","Miette","2-3mm","Ponte I",0.3,"Good"]
["MiettePonte II<1mm","Miette","<1mm","Ponte II",0.1,"Good"]
["MiettePonte II>3mm","Miette",">3mm","Ponte II",0.5,"Good"]
["MiettePonte II1-2mm","Miette","1-2mm","Ponte II",0.1,"Good"]
["MiettePonte II2-3mm","Miette","2-3mm","Ponte II",0.3,"Good"]
["MiettePonte III<1mm","Miette","<1mm","Ponte III",0.1,"Good"]
["MiettePonte III>3mm","Miette",">3mm","Ponte III",0.5,"Good"]
["MiettePonte III1-2mm","Miette","1-2mm","Ponte III",0.1,"Good"]
["MiettePonte III2-3mm","Miette","2-3mm","Ponte III",0.3,"Good"]
["MiettePré-démarrage<1mm","Miette","<1mm","Pré-démarrage",0.05,"Good"]
["MiettePré-démarrage>3mm","Miette",">3mm","Pré-démarrage",0,"Good"]
["MiettePré-démarrage1-2mm","Miette","1-2mm","Pré-démarrage",0.55000000000000004,"Good"]
["MiettePré-démarrage2-3mm","Miette","2-3mm","Pré-démarrage",0.4,"Good"]
["MietteTransition<1mm","Miette","<1mm","Transition",0.1,"Good"]
["MietteTransition>3mm","Miette",">3mm","Transition",0.5,"Good"]
["MietteTransition1-2mm","Miette","1-2mm","Transition",0.1,"Good"]
["MietteTransition2-3mm","Miette","2-3mm","Transition",0.3,"Good"]